bitfinex/quotes_SOLUSD_20250625
["timestamp","ask_amount","ask_price","bid_price","bid_amount"]
[1750859421844,10.48213123,147.26,147.24,6.79150691]
[1750859422677,10.48213123,147.25,147.22,6.79240126]
[1750859422846,26.0,147.3,147.24,10.48213123]
[1750859423046,10.48213123,147.3,147.26,10.48213123]
[1750859423245,10.48213123,147.3,147.22,49.77378965]
[1750859423472,46.18394886,147.32,147.26,10.48213123]
[1750859423473,27.5343,147.32,147.26,10.48213123]
[1750859423649,10.48213123,147.3,147.26,10.48213123]
[1750859423851,1.5343,147.32,147.29,10.48213123]
[1750859424060,10.48213123,147.35,147.3,10.48213123]
[1750859424368,10.48213123,147.35,147.31,10.48213123]
[1750859424574,10.48213123,147.35,147.3,10.48213123]
[1750859424866,10.48213123,147.34,147.26,76.37068647]
[1750859425374,27.661,147.36,147.29,10.48213123]
[1750859425375,10.48213123,147.33,147.29,10.48213123]
[1750859425546,18.64964886,147.35,147.26,23.76748607]
[1750859425751,10.48213123,147.31,147.26,34.2496173]
[1750859426053,10.48213123,147.3,147.26,34.2496173]
[1750859426672,10.48213123,147.29,147.26,6.7907103]
[1750859426877,10.48213123,147.29,147.23,53.46126701]
[1750859426878,10.48213123,147.27,147.23,53.46126701]
[1750859427048,1.5776,147.29,147.23,16.97913578]
[1750859427254,10.48213123,147.26,147.23,6.792094]
[1750859427574,10.48213123,147.27,147.23,6.792094]
[1750859427874,10.48213123,147.26,147.23,6.792094]
[1750859428084,27.5776,147.29,147.23,6.792094]
[1750859428456,10.48213123,147.26,147.23,6.792094]
[1750859428788,10.48213123,147.24,147.23,6.792094]
[1750859429069,10.48213123,147.26,147.23,6.792094]
[1750859429248,26.0,147.27,147.22,6.79238981]
[1750859429249,10.48213123,147.24,147.22,6.79238981]
[1750859429456,10.48213123,147.25,147.22,6.79238981]
[1750859429654,26.0,147.26,147.22,6.79238981]
[1750859429864,10.48213123,147.25,147.22,6.79238981]
[1750859430273,36.48213123,147.26,147.22,17.27452104]
[1750859430582,10.48213123,147.26,147.22,6.79238981]
[1750859430768,26.0,147.27,147.22,6.79238981]
[1750859430971,10.48213123,147.23,147.21,7.28]
[1750859431286,10.48213123,147.22,147.16,16.98730418]
[1750859431492,10.48213123,147.19,147.15,10.48213123]
[1750859431652,10.48213123,147.19,147.11,35.3987]
[1750859431653,1.5749,147.2,147.16,30.0]
[1750859431853,10.48213123,147.17,147.12,10.48213123]
[1750859432082,10.48213123,147.18,147.14,10.48213123]
[1750859432280,36.48213123,147.18,147.1,18.64964886]
[1750859432481,36.48213123,147.18,147.13,10.48213123]
[1750859432662,36.48213123,147.18,147.09,57.78774898]
[1750859432663,10.48213123,147.16,147.12,10.48213123]
[1750859432974,10.48213123,147.15,147.1,10.48213123]
[1750859433178,10.48213123,147.13,147.09,6.7985587]
[1750859433481,26.0,147.15,147.08,14.09885445]
[1750859433482,10.48213123,147.12,147.08,14.09885445]
[1750859433696,10.48213123,147.1,147.02,7.3]
[1750859433973,26.0,147.14,147.07,10.48213123]
[1750859433974,10.48213123,147.11,147.07,10.48213123]
[1750859434284,10.48213123,147.11,147.04,17.00217627]
[1750859434475,10.48213123,147.1,147.04,17.00217627]
[1750859434669,10.48213123,147.1,147.03,6.80133306]
[1750859434670,10.48213123,147.06,147.03,6.80133306]
[1750859434872,26.0,147.09,147.0,10.48213123]
[1750859435085,10.48213123,147.05,147.0,10.48213123]
[1750859435289,18.64964886,147.05,146.97,6.80410968]
[1750859435492,10.48213123,146.98,146.92,8.7242986]
[1750859435690,10.48213123,146.94,146.92,8.2306501]
[1750859435999,10.48213123,146.93,146.92,1.4242986]
[1750859436171,18.64964886,146.96,146.92,1.4242986]
[1750859436368,10.48213123,146.93,146.92,8.23072386]
[1750859436571,10.48213123,146.95,146.92,8.23072386]
[1750859436775,10.48213123,146.99,146.92,8.23072386]
[1750859436994,10.48213123,146.99,146.95,10.48213123]
[1750859437195,36.48213123,146.99,146.92,25.24678702]
[1750859437395,20.17254886,147.02,146.92,25.24678702]
[1750859437396,20.17254886,147.02,146.95,10.48213123]
[1750859437598,12.00503123,147.02,146.93,7.3]
[1750859437795,1.5229,147.02,146.96,10.48213123]
[1750859438094,1.5229,147.02,146.97,10.48213123]
[1750859438300,1.5229,147.02,147.0,6.80272108]
[1750859438494,15.07123966,147.05,147.0,21.87396074]
[1750859438679,18.64964886,147.06,147.02,15.07123966]
[1750859438680,15.07123966,147.06,147.02,15.07123966]
[1750859438881,8.1905,147.08,147.0,23.8095238]
[1750859439076,15.07123966,147.05,147.0,38.88076346]
[1750859439289,34.1905,147.08,147.0,38.88076346]
[1750859439290,15.07123966,147.03,147.0,23.8095238]
[1750859439492,15.07123966,147.05,147.0,38.88076346]
[1750859439689,15.07123966,147.05,147.01,15.07123966]
[1750859439887,15.07123966,147.03,147.0,6.80272108]
[1750859440284,15.07123966,147.01,147.0,6.80272108]
[1750859440597,15.07123966,147.01,146.97,15.07123966]
[1750859440989,15.07123966,147.02,146.98,15.07123966]
[1750859441213,15.07123966,147.03,146.99,15.07123966]
[1750859441412,15.07123966,147.05,147.01,15.07123966]
[1750859441704,26.0,147.06,146.95,18.64964886]
[1750859441705,26.0,147.06,147.02,15.07123966]
[1750859441872,15.07123966,147.06,147.02,15.07123966]
[1750859442079,41.07123966,147.07,147.02,15.07123966]
[1750859442479,26.0,147.07,147.03,23.80466571]
[1750859442687,1.6164,147.08,147.05,15.07123966]
[1750859442874,18.64964886,147.11,147.03,23.80466571]
[1750859443078,15.07123966,147.1,147.06,15.07123966]
[1750859443399,15.07123966,147.09,147.05,15.07123966]
[1750859443717,8.1327,147.14,147.03,23.80466571]
[1750859443718,8.1327,147.14,147.07,15.07123966]
[1750859443918,15.07123966,147.12,147.07,15.07123966]
[1750859444083,15.07123966,147.12,147.03,57.81133101]
[1750859444277,15.07123966,147.12,147.07,15.07123966]
[1750859444482,15.07123966,147.11,147.08,6.79902094]
[1750859444795,8.1327,147.14,147.08,6.79902094]
[1750859444986,15.07123966,147.17,147.12,15.07123966]
[1750859445183,6.0707,147.19,147.08,31.09657329]
[1750859445184,15.07123966,147.15,147.11,15.07123966]
[1750859445378,15.07123966,147.15,147.08,31.09657329]
[1750859445379,15.07123966,147.16,147.12,15.07123966]
[1750859445683,15.07123966,147.15,147.08,31.09657329]
[1750859445898,15.07123966,147.15,147.11,15.07123966]
[1750859446686,15.07123966,147.16,147.12,21.86841203]
[1750859446995,15.07123966,147.17,147.13,15.07123966]
[1750859447308,15.07123966,147.15,147.12,6.79717237]
[1750859447601,15.07123966,147.13,147.11,6.7975395]
[1750859447807,15.07123966,147.12,147.09,6.7985587]
[1750859448005,15.07123966,147.1,147.07,6.79903493]
[1750859448210,26.0,147.11,147.07,6.79903493]
[1750859448386,15.07123966,147.09,147.07,6.79903493]
[1750859448701,26.0,147.11,147.05,32.0717543]
[1750859448702,26.0,147.11,147.06,6.7999456]
[1750859449085,26.0,147.11,147.06,38.87104926]
[1750859449086,15.07123966,147.1,147.06,38.87104926]
[1750859449285,15.07123966,147.08,147.06,6.7999456]
[1750859449494,15.07123966,147.07,147.06,6.7999456]
[1750859449696,15.07123966,147.09,147.06,6.7999456]
[1750859449890,1.5496,147.1,147.06,6.7999456]
[1750859450098,1.5496,147.1,147.06,38.87104926]
[1750859450511,1.6565,147.15,147.08,15.07123966]
[1750859450716,26.0,147.13,147.1,6.79809653]
[1750859451011,42.72773966,147.15,147.1,38.86457752]
[1750859451220,27.6565,147.15,147.1,6.79809653]
[1750859451402,15.07123966,147.13,147.1,6.79809653]
[1750859451716,15.07123966,147.14,147.1,21.86933619]
[1750859451895,1.6565,147.15,147.11,15.07123966]
[1750859452094,16.72773966,147.15,147.1,21.86933619]
[1750859452295,16.72773966,147.15,147.1,6.79809653]
[1750859452296,15.07123966,147.13,147.1,6.79809653]
[1750859452489,27.6565,147.15,147.08,21.8702606]
[1750859452490,46.30614886,147.15,147.08,21.8702606]
[1750859452696,15.07123966,147.13,147.08,21.8702606]
[1750859452898,15.07123966,147.13,147.08,6.79902094]
[1750859453111,18.64964886,147.14,147.08,6.79902094]
[1750859453317,15.07123966,147.13,147.09,15.07123966]
[1750859453514,15.07123966,147.1,147.07,6.79932638]
[1750859453814,15.07123966,147.08,147.06,6.79979609]
[1750859454126,15.07123966,147.07,146.99,24.30742711]
[1750859454296,15.07123966,147.04,146.99,24.30742711]
[1750859454495,15.07123966,147.03,146.99,39.37866677]
[1750859454802,15.07123966,147.02,146.99,7.3]
[1750859454995,15.07123966,147.0,146.93,6.80596202]
[1750859455198,51.45011428,147.05,146.93,6.80596202]
[1750859455199,26.0,147.01,146.93,6.80596202]
[1750859455399,15.07123966,146.98,146.94,15.07123966]
[1750859455702,41.07123966,147.01,146.96,15.07123966]
[1750859455903,26.0,147.04,146.99,15.07123966]
[1750859456094,15.07123966,147.03,146.98,15.07123966]
[1750859456306,15.07123966,147.02,146.98,15.07123966]
[1750859456722,15.07123966,147.03,146.98,15.07123966]
[1750859457026,15.07123966,147.03,146.99,6.80318389]
[1750859458824,26.0,147.04,146.95,26.0]
[1750859458825,26.0,147.04,146.96,6.80457267]
[1750859459120,15.07123966,147.02,146.97,15.07123966]
[1750859459321,15.07123966,147.02,146.98,15.07123966]
[1750859459695,15.07123966,147.01,146.96,23.81600435]
[1750859460020,15.07123966,147.02,146.98,15.07123966]
[1750859460323,15.07123966,147.01,146.96,23.81600435]
[1750859460498,26.0,147.03,146.98,15.07123966]
[1750859460695,15.07123966,147.02,146.98,15.07123966]
[1750859460930,1.6134,147.06,146.99,21.87442355]
[1750859461139,15.07123966,147.01,146.97,21.87534934]
[1750859461432,15.07123966,146.99,146.96,6.80444349]
[1750859461608,15.07123966,146.98,146.96,6.80444349]
[1750859461934,15.07123966,146.98,146.95,6.80486645]
[1750859462098,15.07123966,146.96,146.92,45.83553826]
[1750859462304,15.07123966,146.95,146.92,1.4242986]
[1750859462522,15.07123966,146.93,146.92,1.4242986]
[1750859462998,15.07123966,146.94,146.92,1.4242986]
[1750859463199,15.07123966,146.93,146.92,1.4242986]
[1750859463434,1.5426,146.96,146.92,23.30190145]
[1750859463734,21.65643966,146.98,146.93,15.07123966]
[1750859463919,26.0,147.0,146.97,15.07123966]
[1750859464239,1.639,147.01,146.97,15.07123966]
[1750859464409,1.639,147.01,146.98,15.07123966]
[1750859464728,1.639,147.01,146.99,15.07123966]
[1750859465046,6.3836,147.03,147.0,6.80272108]
[1750859465047,21.45483966,147.03,147.0,6.80272108]
[1750859465252,15.07123966,147.04,147.0,21.87396074]
[1750859465715,26.0,147.04,147.0,6.80272108]
[1750859465918,15.07123966,147.03,147.0,6.80272108]
[1750859466324,26.0,147.04,147.0,6.80272108]
[1750859466325,41.07123966,147.04,147.0,21.87396074]
[1750859466527,15.07123966,147.03,147.0,6.80272108]
[1750859466856,15.07123966,147.02,146.95,17.01148049]
[1750859467024,15.07123966,147.0,146.95,6.80503572]
[1750859467233,15.07123966,146.96,146.94,14.10532826]
[1750859467426,26.0,146.99,146.94,14.10532826]
[1750859467427,15.07123966,146.97,146.94,14.10532826]
[1750859467824,15.07123966,146.98,146.94,14.10532826]
[1750859468049,26.0,146.99,146.95,15.07123966]
[1750859468230,26.0,146.99,146.96,15.07123966]
[1750859468438,26.0,147.02,146.98,15.07123966]
[1750859468825,15.07123966,147.01,146.96,15.07123966]
[1750859469124,26.0,147.02,146.94,31.11907536]
[1750859469125,15.07123966,146.99,146.95,6.80503572]
[1750859469556,15.07123966,146.98,146.95,6.80503572]
[1750859469720,32.80184914,147.02,146.94,7.3]
[1750859469721,15.07123966,146.97,146.94,7.3]
[1750859470045,26.0,146.99,146.94,7.3]
[1750859470046,15.07123966,146.96,146.94,7.3]
[1750859470261,15.07123966,146.95,146.92,1.4242986]
[1750859470429,15.07123966,146.93,146.92,8.23072386]
[1750859470631,15.07123966,146.94,146.92,8.23072386]
[1750859470935,15.07123966,146.93,146.92,1.4242986]
[1750859472331,41.07123966,146.95,146.92,1.4242986]
[1750859472520,1.5324,146.98,146.93,15.07123966]
[1750859472728,27.5324,146.98,146.95,15.07123966]
[1750859473054,25.01754886,147.01,146.95,15.07123966]
[1750859473232,15.07123966,147.0,146.96,15.07123966]
[1750859473747,6.3679,147.01,146.97,15.07123966]
[1750859473948,6.3679,147.01,146.92,25.24678702]
[1750859473949,15.07123966,147.0,146.92,25.24678702]
[1750859474156,15.07123966,146.98,146.93,15.07123966]
[1750859474356,15.07123966,146.96,146.92,8.23072386]
[1750859474536,18.64964886,146.99,146.92,23.30196352]
[1750859474851,26.0,147.0,146.94,15.07123966]
[1750859475052,15.07123966,146.98,146.94,15.07123966]
[1750859475226,15.07123966,146.98,146.95,6.80503572]
[1750859475626,15.07123966,146.97,146.94,6.80543481]
[1750859475828,32.80279891,147.0,146.92,8.23068989]
[1750859476049,15.07123966,146.94,146.92,1.4242986]
[1750859476428,15.07123966,146.93,146.92,1.4242986]
[1750859476628,26.0,146.96,146.92,1.4242986]
[1750859476629,18.64964886,146.95,146.92,1.4242986]
[1750859476871,15.07123966,146.93,146.92,1.4242986]
[1750859477371,66.52685054,146.93,146.92,1.4242986]
[1750859477657,72.65095054,146.93,146.92,1.4242986]
[1750859478339,102.91095054,146.93,146.92,1.4242986]
[1750859479450,77.45533966,146.93,146.92,1.4242986]
[1750859479760,32.1241,146.93,146.92,1.4242986]
[1750859479941,47.19533966,146.93,146.92,1.4242986]
[1750859480453,20.28094886,146.95,146.92,1.4242986]
[1750859480454,8.43649962,146.95,146.92,1.4242986]
[1750859480635,15.07123966,146.93,146.92,1.4242986]
[1750859480837,41.07123966,146.93,146.92,1.4242986]
[1750859481048,26.0,146.89,146.79,6.81245316]
[1750859481264,18.64964886,146.88,146.82,6.81106116]
[1750859481558,18.64964886,146.88,146.8,6.8119891]
[1750859481559,15.07123966,146.83,146.8,6.8119891]
[1750859481734,18.64964886,146.85,146.8,6.8119891]
[1750859481938,15.07123966,146.82,146.78,6.81291729]
[1750859482250,15.07123966,146.81,146.78,6.81291729]
[1750859482653,30.22,146.83,146.74,6.81477443]
[1750859482969,30.22,146.83,146.74,47.88601409]
[1750859482970,15.07123966,146.78,146.74,47.88601409]
[1750859483145,15.07123966,146.79,146.74,32.81477443]
[1750859483455,15.07123966,146.79,146.74,6.81477443]
[1750859483634,15.07123966,146.78,146.74,6.81477443]
[1750859483836,18.64964886,146.82,146.73,7.48]
[1750859483837,15.07123966,146.75,146.73,7.48]
[1750859484064,15.07123966,146.74,146.73,6.81523887]
[1750859484235,55.50574886,146.79,146.73,6.81523887]
[1750859484436,15.07123966,146.74,146.73,6.81523887]
[1750859484636,15.07123966,146.75,146.71,15.07123966]
[1750859484855,15.07123966,146.75,146.7,17.04116511]
[1750859485055,55.50574886,146.79,146.7,32.11240477]
[1750859485331,55.50574886,146.79,146.7,38.92903735]
[1750859485546,15.07123966,146.76,146.72,15.07123966]
[1750859485747,25.28574886,146.79,146.73,15.07123966]
[1750859485953,16.87123966,146.78,146.74,15.07123966]
[1750859486150,1.8,146.78,146.71,26.0]
[1750859486338,26.0,146.81,146.75,15.07123966]
[1750859486665,15.07123966,146.8,146.76,15.07123966]
[1750859486976,6.4899,146.82,146.73,26.0]
[1750859487257,15.07123966,146.81,146.77,15.07123966]
[1750859487453,6.4899,146.82,146.73,26.0]
[1750859487454,15.07123966,146.83,146.79,15.07123966]
[1750859487647,44.64964886,146.85,146.78,23.84521051]
[1750859487855,15.07123966,146.84,146.78,23.84521051]
[1750859488166,15.07123966,146.84,146.79,15.07123966]
[1750859488337,6.4236,146.87,146.82,15.07123966]
[1750859488542,15.07123966,146.88,146.83,15.07123966]
[1750859488875,8.1059,146.92,146.82,26.0]
[1750859489053,15.07123966,146.91,146.82,26.0]
[1750859489251,15.07123966,146.9,146.86,15.07123966]
[1750859489469,8.1059,146.92,146.83,23.8370905]
[1750859489770,15.07123966,146.87,146.83,6.81059728]
[1750859490061,18.64964886,146.91,146.83,6.81059728]
[1750859490062,15.07123966,146.9,146.83,23.8370905]
[1750859490249,15.07123966,146.85,146.81,6.8115251]
[1750859490445,15.07123966,146.82,146.8,7.48]
[1750859490963,15.07123966,146.84,146.8,29.36319999]
[1750859491770,15.07123966,146.83,146.8,7.48]
[1750859491974,15.07123966,146.81,146.8,7.48]
[1750859492141,18.64964886,146.87,146.8,14.2919891]
[1750859492341,15.07123966,146.85,146.8,14.2919891]
[1750859492641,15.07123966,146.85,146.8,29.36322876]
[1750859492970,15.07123966,146.84,146.8,29.36322876]
[1750859493562,15.07123966,146.82,146.8,7.48]
[1750859493749,15.07123966,146.82,146.78,6.8126062]
[1750859494065,25.45980505,146.84,146.75,17.03469196]
[1750859494066,25.45980505,146.84,146.76,21.88497778]
[1750859494252,15.07123966,146.79,146.75,29.36539573]
[1750859494440,18.64964886,146.82,146.75,6.81415607]
[1750859494639,15.07123966,146.79,146.75,21.88539573]
[1750859495364,15.07123966,146.78,146.75,6.81415607]
[1750859495774,15.07123966,146.77,146.73,6.81523887]
[1750859496063,15.07123966,146.77,146.73,21.88647853]
[1750859496369,18.64964886,146.8,146.74,15.07123966]
[1750859496370,15.07123966,146.79,146.74,15.07123966]
[1750859496879,15.07123966,146.79,146.75,15.07123966]
[1750859497052,26.0,146.8,146.73,23.85333605]
[1750859497053,15.07123966,146.78,146.74,15.07123966]
[1750859497374,15.07123966,146.77,146.73,6.81523887]
[1750859497669,15.07123966,146.79,146.75,15.07123966]
[1750859497847,15.07123966,146.78,146.74,15.07123966]
[1750859498248,15.07123966,146.77,146.73,38.92457571]
[1750859498442,15.07123966,146.77,146.73,21.88647853]
[1750859498658,15.07123966,146.78,146.73,21.88647853]
[1750859498863,18.64964886,146.79,146.74,15.07123966]
[1750859499062,15.07123966,146.78,146.74,15.07123966]
[1750859499257,33.72088852,146.79,146.74,15.07123966]
[1750859499459,26.0,146.8,146.72,7.48]
[1750859499460,15.07123966,146.81,146.76,15.07123966]
[1750859499839,15.07123966,146.8,146.76,15.07123966]
[1750859500146,15.07123966,146.78,146.75,6.81431005]
[1750859500949,15.07123966,146.8,146.76,15.07123966]
[1750859501363,15.07123966,146.8,146.77,6.81338148]
[1750859501950,15.07123966,146.81,146.77,21.88462114]
[1750859502156,8.0277,146.83,146.78,15.07123966]
[1750859502365,8.0277,146.83,146.77,6.81338148]
[1750859502366,15.07123966,146.85,146.81,15.07123966]
[1750859503154,7.7304,146.87,146.77,6.81338148]
[1750859503155,7.7304,146.87,146.77,23.84683518]
[1750859503353,18.64964886,146.86,146.8,15.07123966]
[1750859503561,18.64964886,146.86,146.77,49.84683518]
[1750859503562,33.72088852,146.86,146.81,21.88276476]
[1750859503761,18.64964886,146.86,146.82,15.07123966]
[1750859503961,33.72088852,146.86,146.81,38.91157751]
[1750859504459,15.07123966,146.86,146.82,15.07123966]
[1750859505066,15.07123966,146.86,146.81,23.84033785]
[1750859505258,15.07123966,146.86,146.82,15.07123966]
[1750859505469,33.72088852,146.86,146.83,6.81059728]
[1750859505775,33.72088852,146.86,146.75,6.3937]
[1750859505776,18.64964886,146.83,146.78,6.81291729]
[1750859505946,15.07123966,146.81,146.78,6.81291729]
[1750859506150,15.07123966,146.8,146.78,6.81291729]
[1750859506347,15.07123966,146.79,146.76,6.81384573]
[1750859506572,26.0,146.83,146.76,23.84846006]
[1750859506775,26.0,146.83,146.76,38.91969972]
[1750859507079,15.07123966,146.8,146.76,38.91969972]
[1750859507275,15.07123966,146.81,146.77,15.07123966]
[1750859507571,15.07123966,146.81,146.73,60.07457928]
[1750859507572,15.07123966,146.82,146.78,38.91645017]
[1750859508379,15.07123966,146.83,146.78,23.84521051]
[1750859508578,15.07123966,146.83,146.78,38.91645017]
[1750859509075,15.07123966,146.83,146.79,15.07123966]
[1750859509452,15.07123966,146.83,146.78,23.84521051]
[1750859509651,15.07123966,146.83,146.79,15.07123966]
[1750859510461,26.0,146.85,146.78,17.03229322]
[1750859510462,26.0,146.85,146.8,15.07123966]
[1750859510671,15.07123966,146.84,146.8,15.07123966]
[1750859511456,15.07123966,146.84,146.78,17.03229322]
[1750859511768,15.07123966,146.8,146.76,6.81384573]
[1750859512080,15.07123966,146.77,146.72,14.27560111]
[1750859512278,15.07123966,146.75,146.72,14.27560111]
[1750859512477,15.07123966,146.76,146.72,14.27560111]
[1750859512974,15.07123966,146.76,146.72,29.34684077]
[1750859513165,15.07123966,146.75,146.72,14.27560111]
[1750859513362,15.07123966,146.73,146.67,23.12913724]
[1750859513676,15.07123966,146.72,146.68,51.88880169]
[1750859513866,15.07123966,146.72,146.68,21.88880169]
[1750859514380,15.07123966,146.72,146.68,6.81756203]
[1750859514557,15.07123966,146.73,146.69,15.07123966]
[1750859514866,15.07123966,146.73,146.68,21.88880169]
[1750859515270,15.07123966,146.75,146.71,15.07123966]
[1750859515464,18.64964886,146.76,146.68,6.81756203]
[1750859515465,15.07123966,146.74,146.7,15.07123966]
[1750859515657,15.07123966,146.74,146.68,23.86146712]
[1750859515860,18.64964886,146.76,146.68,23.86146712]
[1750859516060,26.0,146.78,146.72,15.07123966]
[1750859516276,30.2,146.81,146.69,26.0]
[1750859516277,18.64964886,146.8,146.69,26.0]
[1750859516481,15.07123966,146.77,146.73,15.07123966]
[1750859516671,15.97123966,146.77,146.73,15.07123966]
[1750859516873,0.9,146.77,146.74,6.81477443]
[1750859517078,33.72088852,146.8,146.76,15.07123966]
[1750859517382,15.07123966,146.82,146.78,15.07123966]
[1750859517577,33.72088852,146.82,146.78,15.07123966]
[1750859518170,7.46,146.86,146.8,15.07123966]
[1750859518370,38.3458,146.87,146.8,15.07123966]
[1750859518371,18.64964886,146.84,146.8,15.07123966]
[1750859518674,15.07123966,146.86,146.81,15.07123966]
[1750859518874,15.07123966,146.86,146.76,26.0]
[1750859518875,15.07123966,146.86,146.82,15.07123966]
[1750859519381,15.07123966,146.85,146.81,15.07123966]
[1750859519881,26.79544886,146.87,146.82,15.07123966]
[1750859520181,33.72088852,146.9,146.85,15.07123966]
[1750859520379,16.61953966,146.92,146.88,15.07123966]
[1750859520760,11.10814126,146.95,146.9,21.8785916]
[1750859520967,21.12813966,146.95,146.89,6.8076667]
[1750859521172,32.65824126,146.97,146.91,15.07123966]
[1750859521388,15.07123966,146.94,146.88,6.80797725]
[1750859521562,15.07123966,146.95,146.9,15.07123966]
[1750859521763,27.607,146.97,146.92,15.07123966]
[1750859521964,15.07123966,146.96,146.92,15.07123966]
[1750859522786,15.07123966,146.96,146.91,21.87791909]
[1750859522986,15.07123966,146.94,146.89,15.07123966]
[1750859523188,15.07123966,146.9,146.78,10.0]
[1750859523486,15.07123966,146.89,146.85,15.07123966]
[1750859523684,15.07123966,146.86,146.83,6.81059728]
[1750859524087,18.64964886,146.9,146.82,7.46]
[1750859524088,15.07123966,146.85,146.82,7.46]
[1750859524277,15.07123966,146.83,146.76,24.49363162]
[1750859524476,15.07123966,146.83,146.79,15.07123966]
[1750859524678,44.64964886,146.87,146.78,15.07123966]
[1750859524873,15.07123966,146.82,146.79,6.81245316]
[1750859525063,6.80970973,146.85,146.79,6.81245316]
[1750859525263,15.07123966,146.82,146.78,21.88402666]
[1750859526177,15.07123966,146.86,146.81,15.07123966]
[1750859526575,15.07123966,146.84,146.8,15.07123966]
[1750859527100,15.07123966,146.83,146.79,21.88349059]
[1750859527269,15.07123966,146.84,146.8,15.07123966]
[1750859527476,15.07123966,146.84,146.76,7.46]
[1750859527477,15.07123966,146.83,146.78,6.81274832]
[1750859527674,15.07123966,146.82,146.78,21.88398798]
[1750859528084,18.64964886,146.86,146.8,15.07123966]
[1750859528403,15.07123966,146.81,146.76,22.53123966]
[1750859528572,15.07123966,146.78,146.76,7.46]
[1750859528892,15.07123966,146.78,146.76,14.27374292]
[1750859529267,15.07123966,146.79,146.76,14.27374292]
[1750859529592,44.64964886,146.84,146.77,15.07123966]
[1750859529885,44.64964886,146.84,146.78,15.07123966]
[1750859529886,15.07123966,146.82,146.78,15.07123966]
[1750859530095,15.07123966,146.83,146.78,15.07123966]
[1750859530295,15.07123966,146.82,146.78,15.07123966]
[1750859530482,15.07123966,146.81,146.77,15.07123966]
[1750859531189,18.64964886,146.84,146.75,7.46]
[1750859531375,6.81059728,146.83,146.77,15.07123966]
[1750859531573,18.64964886,146.84,146.75,14.27415166]
[1750859531574,15.07123966,146.8,146.75,14.27415166]
[1750859531776,42.4852545,146.84,146.75,14.27415166]
[1750859531777,15.07123966,146.79,146.75,29.34539132]
[1750859531971,15.07123966,146.78,146.75,7.46]
[1750859532574,15.07123966,146.79,146.75,29.34541118]
[1750859532791,15.07123966,146.8,146.75,29.34541118]
[1750859532993,15.07123966,146.81,146.77,15.07123966]
[1750859533290,15.57123966,146.82,146.78,15.07123966]
[1750859533493,6.80937411,146.86,146.81,15.07123966]
[1750859533692,6.80937411,146.86,146.8,15.07123966]
[1750859533693,15.07123966,146.84,146.8,15.07123966]
[1750859533883,6.80937411,146.86,146.77,41.07123966]
[1750859533884,15.07123966,146.82,146.77,41.07123966]
[1750859534079,15.07123966,146.84,146.79,15.07123966]
[1750859534278,15.07123966,146.84,146.8,15.07123966]
[1750859535417,15.07123966,146.86,146.81,15.07123966]
[1750859535599,15.07123966,146.83,146.78,15.07123966]
[1750859535785,15.07123966,146.82,146.78,15.07123966]
[1750859535979,15.07123966,146.82,146.77,15.07123966]
[1750859536209,15.07123966,146.8,146.76,21.88508539]
[1750859536508,26.0,146.84,146.76,21.88508539]
[1750859536509,15.07123966,146.81,146.76,21.88508539]
[1750859536804,15.07123966,146.81,146.77,15.07123966]
[1750859537305,15.07123966,146.81,146.77,21.8844504]
[1750859537614,21.88282442,146.81,146.76,6.81368133]
[1750859537911,21.88282442,146.81,146.76,21.88492099]
[1750859538207,21.88282442,146.81,146.76,6.81368133]
[1750859538520,21.88282442,146.81,146.76,21.88492099]
[1750859539109,15.07123966,146.78,146.75,7.46]
[1750859539313,18.64964886,146.82,146.75,7.46]
[1750859539314,15.07123966,146.77,146.75,7.46]
[1750859539497,18.64964886,146.79,146.72,15.07123966]
[1750859539808,18.64964886,146.79,146.71,6.81587913]
[1750859539809,15.07123966,146.78,146.74,15.07123966]
[1750859540192,0.5,146.8,146.74,15.07123966]
[1750859540389,15.07123966,146.78,146.74,15.07123966]
[1750859540601,0.5,146.8,146.77,15.07123966]
[1750859540807,26.0,146.82,146.78,15.07123966]
[1750859541109,32.88278725,146.81,146.77,15.07123966]
[1750859541309,15.07123966,146.79,146.75,15.07123966]
[1750859541483,15.07123966,146.79,146.73,32.8150487]
[1750859541683,11.0,146.81,146.78,15.07123966]
[1750859541884,11.0,146.81,146.79,15.07123966]
[1750859542482,11.0,146.81,146.78,15.07123966]
[1750859542790,15.07123966,146.79,146.73,21.88628836]
[1750859543110,17.8115901,146.81,146.73,6.8150487]
[1750859543111,15.07123966,146.77,146.73,6.8150487]
[1750859543610,15.07123966,146.75,146.72,7.42]
[1750859544310,15.07123966,146.74,146.72,7.42]
[1750859544522,15.07123966,146.74,146.7,21.88764776]
[1750859544682,15.07123966,146.75,146.71,15.07123966]
[1750859544887,15.07123966,146.75,146.7,21.88764776]
[1750859545106,15.07123966,146.74,146.7,21.88764776]
[1750859545311,15.07123966,146.75,146.71,15.07123966]
[1750859546010,15.07123966,146.75,146.7,21.88764776]
[1750859546305,15.07123966,146.74,146.7,21.88764776]